[Event "*** Titled Tuesday Blitz"]
[Site "Chess.com"]
[Date "2020.11.10"]
[Round "6"]
[White "fabianvivasz"]
[Black "B-man"]
[Result "1-0"]
[WhiteElo "2390"]
[BlackElo "2557"]
[TimeControl "180+1"]
[EndTime "11:10:29 PST"]
[Termination "fabianvivasz won by checkmate"]

1. e4 {[%clk 0:03:00.9]} 1... d5 {[%clk 0:02:58.1]} 2. exd5 {[%clk 0:02:59.7]}
2... Qxd5 {[%clk 0:02:58.7]} 3. Nc3 {[%clk 0:02:59.9]} 3... Qd6 {[%clk 0:02:58]}
4. d4 {[%clk 0:02:58.2]} 4... Nf6 {[%clk 0:02:56.4]} 5. Nf3 {[%clk 0:02:55.9]}
5... c6 {[%clk 0:02:53.8]} 6. Ne5 {[%clk 0:02:32.9]} 6... Bf5 {[%clk 0:02:41.8]}
7. Bf4 {[%clk 0:02:23.3]} 7... Qd8 {[%clk 0:02:39.7]} 8. Bc4 {[%clk 0:02:20.9]}
8... e6 {[%clk 0:02:39.8]} 9. g4 {[%clk 0:02:13.2]} 9... Bg6 {[%clk 0:02:33.6]}
10. h4 {[%clk 0:02:13.6]} 10... Be4 {[%clk 0:02:22.1]} 11. Rh3 {[%clk 0:01:48]}
11... Bd5 {[%clk 0:02:18.9]} 12. Nxd5 {[%clk 0:01:35]} 12... Nxd5 {[%clk
0:02:09.9]} 13. Qf3 {[%clk 0:01:15.5]} 13... Qa5+ {[%clk 0:01:36.6]} 14. c3
{[%clk 0:00:56.7]} 14... f6 {[%clk 0:01:27.9]} 15. Nd3 {[%clk 0:00:50.4]} 15...
Nd7 {[%clk 0:00:59.9]} 16. Qe4 {[%clk 0:00:40.5]} 16... O-O-O {[%clk 0:00:32]}
17. Bd2 {[%clk 0:00:37.6]} 17... e5 {[%clk 0:00:16.5]} 18. dxe5 {[%clk
0:00:27.3]} 18... Nxe5 {[%clk 0:00:05.4]} 19. Nxe5 {[%clk 0:00:25.4]} 19... fxe5
{[%clk 0:00:06.3]} 20. O-O-O {[%clk 0:00:23.2]} 20... Bd6 {[%clk 0:00:03.2]} 21.
Rd3 {[%clk 0:00:16.9]} 21... Bc7 {[%clk 0:00:02.1]} 22. Bg5 {[%clk 0:00:14.9]}
22... Rd7 {[%clk 0:00:01.9]} 23. Bxd5 {[%clk 0:00:10.9]} 23... cxd5 {[%clk
0:00:02.8]} 24. Rxd5 {[%clk 0:00:10.6]} 24... Rxd5 {[%clk 0:00:02.7]} 25. Qxd5
{[%clk 0:00:11.3]} 25... Qxd5 {[%clk 0:00:02.7]} 26. Rxd5 {[%clk 0:00:12.2]}
26... Rf8 {[%clk 0:00:03.1]} 27. Be3 {[%clk 0:00:09.8]} 27... Kb8 {[%clk
0:00:02.8]} 28. Kc2 {[%clk 0:00:09.2]} 28... h6 {[%clk 0:00:02.6]} 29. Kd3
{[%clk 0:00:09.3]} 29... a6 {[%clk 0:00:02.7]} 30. Ke4 {[%clk 0:00:09.7]} 30...
Kc8 {[%clk 0:00:03.3]} 31. c4 {[%clk 0:00:06]} 31... Rf7 {[%clk 0:00:04]} 32. b4
{[%clk 0:00:06.1]} 32... Rf8 {[%clk 0:00:04.9]} 33. a4 {[%clk 0:00:06.1]} 33...
Rf7 {[%clk 0:00:05]} 34. b5 {[%clk 0:00:06.6]} 34... g5 {[%clk 0:00:05.3]} 35.
b6 {[%clk 0:00:06]} 35... Bd8 {[%clk 0:00:05.1]} 36. hxg5 {[%clk 0:00:05.7]}
36... hxg5 {[%clk 0:00:06]} 37. Rxe5 {[%clk 0:00:06.2]} 37... Rf6 {[%clk
0:00:05.7]} 38. c5 {[%clk 0:00:06.2]} 38... Rf8 {[%clk 0:00:05.5]} 39. Bxg5
{[%clk 0:00:06]} 39... Bxg5 {[%clk 0:00:06.2]} 40. Rxg5 {[%clk 0:00:06.9]} 40...
Rxf2 {[%clk 0:00:06.6]} 41. Kd5 {[%clk 0:00:06.1]} 41... Rd2+ {[%clk 0:00:06.2]}
42. Ke6 {[%clk 0:00:06.5]} 42... Re2+ {[%clk 0:00:06.6]} 43. Kd6 {[%clk
0:00:06.7]} 43... Rd2+ {[%clk 0:00:06.9]} 44. Rd5 {[%clk 0:00:06.9]} 44... Rg2
{[%clk 0:00:06.7]} 45. g5 {[%clk 0:00:07.2]} 45... Rg4 {[%clk 0:00:06.9]} 46.
Ke6 {[%clk 0:00:06.7]} 46... Rxa4 {[%clk 0:00:06.2]} 47. g6 {[%clk 0:00:06.5]}
47... Re4+ {[%clk 0:00:06.7]} 48. Kf7 {[%clk 0:00:06.5]} 48... Rf4+ {[%clk
0:00:06.9]} 49. Ke7 {[%clk 0:00:06.6]} 49... Rg4 {[%clk 0:00:05.5]} 50. Rd8#
{[%clk 0:00:05.6]} 1-0

[Event "*** Titled Tuesday Blitz"]
[Site "Chess.com"]
[Date "2020.11.10"]
[Round "6"]
[White "giantslayer83"]
[Black "GalperinPlaton"]
[Result "0-1"]
[WhiteElo "2707"]
[BlackElo "2890"]
[TimeControl "180+1"]
[EndTime "11:10:31 PST"]
[Termination "GalperinPlaton won by checkmate"]

1. d4 {[%clk 0:03:00.9]} 1... Nf6 {[%clk 0:03:00.1]} 2. c4 {[%clk 0:03:00.8]}
2... e6 {[%clk 0:02:58.6]} 3. Nf3 {[%clk 0:03:00.9]} 3... Nc6 {[%clk 0:02:58.2]}
4. a3 {[%clk 0:03:00.4]} 4... g6 {[%clk 0:02:56.1]} 5. Nc3 {[%clk 0:03:00.4]}
5... Bg7 {[%clk 0:02:56.6]} 6. e4 {[%clk 0:03:00.6]} 6... d6 {[%clk 0:02:56]} 7.
Be2 {[%clk 0:02:59.1]} 7... O-O {[%clk 0:02:56.4]} 8. O-O {[%clk 0:02:59.3]}
8... Re8 {[%clk 0:02:56.6]} 9. Be3 {[%clk 0:02:54.4]} 9... e5 {[%clk 0:02:36]}
10. d5 {[%clk 0:02:51.8]} 10... Nd4 {[%clk 0:02:36]} 11. Nxd4 {[%clk 0:02:50.2]}
11... exd4 {[%clk 0:02:36.9]} 12. Bxd4 {[%clk 0:02:50.9]} 12... Nxe4 {[%clk
0:02:33.9]} 13. Bxg7 {[%clk 0:02:30.9]} 13... Kxg7 {[%clk 0:02:34.8]} 14. Qd4+
{[%clk 0:02:31.1]} 14... Qf6 {[%clk 0:02:34.9]} 15. Qxf6+ {[%clk 0:02:31.2]}
15... Kxf6 {[%clk 0:02:30.1]} 16. Nb5 {[%clk 0:02:30.3]} 16... Re7 {[%clk
0:02:17]} 17. Bd3 {[%clk 0:02:30.3]} 17... a6 {[%clk 0:02:04.9]} 18. Nd4 {[%clk
0:02:29.6]} 18... Bd7 {[%clk 0:01:58.4]} 19. f3 {[%clk 0:02:26.1]} 19... Nc5
{[%clk 0:01:57.5]} 20. Bc2 {[%clk 0:02:26.2]} 20... Rae8 {[%clk 0:01:57.5]} 21.
Kf2 {[%clk 0:02:20.7]} 21... Ba4 {[%clk 0:01:42.7]} 22. b3 {[%clk 0:02:19.1]}
22... Bd7 {[%clk 0:01:42.1]} 23. b4 {[%clk 0:02:07.6]} 23... Na4 {[%clk
0:01:39.1]} 24. Rfc1 {[%clk 0:02:06.4]} 24... Nb2 {[%clk 0:01:32.7]} 25. Bb1
{[%clk 0:02:04.3]} 25... Re3 {[%clk 0:01:26.8]} 26. Ra2 {[%clk 0:02:03.9]} 26...
Nd3+ {[%clk 0:01:22.6]} 27. Bxd3 {[%clk 0:02:03.4]} 27... Rxd3 {[%clk
0:01:23.5]} 28. Ne2 {[%clk 0:02:03]} 28... g5 {[%clk 0:01:21.5]} 29. Ng3 {[%clk
0:01:55.1]} 29... Bf5 {[%clk 0:01:17.8]} 30. a4 {[%clk 0:01:22.5]} 30... Bg6
{[%clk 0:01:17]} 31. a5 {[%clk 0:01:21.3]} 31... h5 {[%clk 0:01:16.1]} 32. Rb2
{[%clk 0:01:10.8]} 32... h4 {[%clk 0:01:15.9]} 33. Nf1 {[%clk 0:01:10.9]} 33...
h3 {[%clk 0:01:11.5]} 34. g4 {[%clk 0:01:06.8]} 34... Ra3 {[%clk 0:01:03.8]} 35.
c5 {[%clk 0:01:04]} 35... Re5 {[%clk 0:01:03.3]} 36. Rd2 {[%clk 0:00:59.6]}
36... Ke7 {[%clk 0:00:59.7]} 37. c6 {[%clk 0:00:58.8]} 37... bxc6 {[%clk
0:00:52.9]} 38. Rxc6 {[%clk 0:00:59.7]} 38... Kd7 {[%clk 0:00:47.6]} 39. Rxa6
{[%clk 0:00:35.2]} 39... f5 {[%clk 0:00:48.1]} 40. Ra8 {[%clk 0:00:32.7]} 40...
fxg4 {[%clk 0:00:41.8]} 41. fxg4 {[%clk 0:00:33.6]} 41... Re4 {[%clk 0:00:42.3]}
42. Rg8 {[%clk 0:00:28]} 42... Rf4+ {[%clk 0:00:41.8]} 43. Ke2 {[%clk
0:00:26.9]} 43... Be4 {[%clk 0:00:38.6]} 44. Rg7+ {[%clk 0:00:19.8]} 44... Kc8
{[%clk 0:00:37.9]} 45. Ng3 {[%clk 0:00:09.9]} 45... Bf3+ {[%clk 0:00:31.5]} 46.
Ke1 {[%clk 0:00:10]} 46... Ra1+ {[%clk 0:00:31.1]} 47. Kf2 {[%clk 0:00:09.8]}
47... Bxd5+ {[%clk 0:00:23.8]} 48. Ke3 {[%clk 0:00:09.8]} 48... Bc4 {[%clk
0:00:22.4]} 49. Rc2 {[%clk 0:00:06.5]} 49... Ra3+ {[%clk 0:00:22.4]} 50. Kd2
{[%clk 0:00:06.6]} 50... Rf2+ {[%clk 0:00:21.9]} 51. Kc1 {[%clk 0:00:06.8]}
51... Ra1+ {[%clk 0:00:22.4]} 52. Kb2 {[%clk 0:00:07]} 52... Ra2+ {[%clk
0:00:23]} 53. Kb1 {[%clk 0:00:06.9]} 53... Raxc2 {[%clk 0:00:22.7]} 54. Rxg5
{[%clk 0:00:06.7]} 54... Ba2+ {[%clk 0:00:22.4]} 55. Ka1 {[%clk 0:00:06.7]}
55... Rc1# {[%clk 0:00:23.3]} 0-1

[Event "*** Titled Tuesday Blitz"]
[Site "Chess.com"]
[Date "2020.11.10"]
[Round "6"]
[White "IsuruAlahakoon"]
[Black "mbojan"]
[Result "0-1"]
[WhiteElo "2465"]
[BlackElo "2665"]
[TimeControl "180+1"]
[EndTime "11:10:35 PST"]
[Termination "mbojan won on time"]

1. d4 {[%clk 0:03:00.9]} 1... g6 {[%clk 0:03:00.1]} 2. Nc3 {[%clk 0:02:59.5]}
2... Bg7 {[%clk 0:03:00.3]} 3. e4 {[%clk 0:02:59.3]} 3... d6 {[%clk 0:03:00.5]}
4. Bf4 {[%clk 0:02:57.4]} 4... a6 {[%clk 0:02:59.4]} 5. Qd2 {[%clk 0:02:56.9]}
5... b5 {[%clk 0:02:59.6]} 6. O-O-O {[%clk 0:02:54.1]} 6... Bb7 {[%clk
0:02:59.8]} 7. f3 {[%clk 0:02:49.2]} 7... Nd7 {[%clk 0:02:55.6]} 8. h4 {[%clk
0:02:47.5]} 8... h6 {[%clk 0:02:52.4]} 9. Nh3 {[%clk 0:02:28]} 9... Rc8 {[%clk
0:02:51]} 10. Nf2 {[%clk 0:02:26.2]} 10... c5 {[%clk 0:02:43.2]} 11. dxc5 {[%clk
0:02:24.8]} 11... Nxc5 {[%clk 0:02:39]} 12. Nd3 {[%clk 0:02:15.4]} 12... Ne6
{[%clk 0:02:36.8]} 13. Be3 {[%clk 0:02:11.5]} 13... Nf6 {[%clk 0:02:32.7]} 14.
Kb1 {[%clk 0:02:08.8]} 14... Nd7 {[%clk 0:02:11.2]} 15. h5 {[%clk 0:01:56.9]}
15... g5 {[%clk 0:02:09.8]} 16. f4 {[%clk 0:01:56.8]} 16... gxf4 {[%clk
0:02:05.7]} 17. Nxf4 {[%clk 0:01:55.3]} 17... Nxf4 {[%clk 0:02:01.6]} 18. Bxf4
{[%clk 0:01:55.1]} 18... Rxc3 {[%clk 0:02:01.6]} 19. bxc3 {[%clk 0:01:54.4]}
19... Qc7 {[%clk 0:02:01.6]} 20. e5 {[%clk 0:01:30.4]} 20... Nxe5 {[%clk
0:01:56.3]} 21. Qd4 {[%clk 0:01:18.2]} 21... Bc8 {[%clk 0:01:32.3]} 22. c4
{[%clk 0:01:15.1]} 22... bxc4 {[%clk 0:01:28.4]} 23. Bxe5 {[%clk 0:00:58.8]}
23... Bxe5 {[%clk 0:01:26.5]} 24. Qxc4 {[%clk 0:00:59.1]} 24... Qxc4 {[%clk
0:01:05.1]} 25. Bxc4 {[%clk 0:00:58]} 25... Rg8 {[%clk 0:01:03.1]} 26. Bd5
{[%clk 0:00:54.9]} 26... Rg4 {[%clk 0:00:56.7]} 27. c3 {[%clk 0:00:47.8]} 27...
e6 {[%clk 0:00:51.1]} 28. Bf3 {[%clk 0:00:42.8]} 28... Rc4 {[%clk 0:00:50.5]}
29. Rd3 {[%clk 0:00:38.8]} 29... Ke7 {[%clk 0:00:50.5]} 30. Kc2 {[%clk
0:00:32.6]} 30... Bd7 {[%clk 0:00:50.1]} 31. Kb3 {[%clk 0:00:32.4]} 31... Rc8
{[%clk 0:00:46.1]} 32. Rhd1 {[%clk 0:00:23]} 32... Rb8+ {[%clk 0:00:45.3]} 33.
Kc2 {[%clk 0:00:22.7]} 33... Ba4+ {[%clk 0:00:45.3]} 34. Kd2 {[%clk 0:00:16.4]}
34... Bxd1 {[%clk 0:00:35]} 35. Bxd1 {[%clk 0:00:15.5]} 35... Rb2+ {[%clk
0:00:34.7]} 36. Ke3 {[%clk 0:00:14.5]} 36... Rxa2 {[%clk 0:00:32.5]} 37. c4
{[%clk 0:00:13.5]} 37... Rxg2 {[%clk 0:00:31.2]} 38. Ra3 {[%clk 0:00:11.5]}
38... Rg1 {[%clk 0:00:21.9]} 39. Bf3 {[%clk 0:00:10.7]} 39... Ra1 {[%clk
0:00:21.4]} 40. Rxa1 {[%clk 0:00:10.4]} 40... Bxa1 {[%clk 0:00:21.3]} 41. Kd3
{[%clk 0:00:08.9]} 41... Bb2 {[%clk 0:00:20.7]} 42. Kc2 {[%clk 0:00:08.1]} 42...
Bd4 {[%clk 0:00:20.5]} 43. Kb3 {[%clk 0:00:08.2]} 43... Bb6 {[%clk 0:00:20.9]}
44. Ka4 {[%clk 0:00:07.8]} 44... a5 {[%clk 0:00:21.4]} 45. Kb5 {[%clk
0:00:07.4]} 45... Bd8 {[%clk 0:00:22.1]} 46. Kc6 {[%clk 0:00:06.5]} 46... a4
{[%clk 0:00:21.6]} 47. Bd1 {[%clk 0:00:06.1]} 47... a3 {[%clk 0:00:21.9]} 48.
Bb3 {[%clk 0:00:06.5]} 48... Ba5 {[%clk 0:00:21.2]} 49. Ba2 {[%clk 0:00:06.1]}
49... Bc3 {[%clk 0:00:21.4]} 50. Bb3 {[%clk 0:00:06]} 50... Bd4 {[%clk
0:00:21.3]} 51. Ba2 {[%clk 0:00:05.9]} 51... Bc5 {[%clk 0:00:22]} 52. Bb3 {[%clk
0:00:04.6]} 52... f5 {[%clk 0:00:22.7]} 0-1

[Event "*** Titled Tuesday Blitz"]
[Site "Chess.com"]
[Date "2020.11.10"]
[Round "6"]
[White "Natalya_Buksa"]
[Black "Kotofeyca"]
[Result "1-0"]
[WhiteElo "2574"]
[BlackElo "2381"]
[TimeControl "180+1"]
[EndTime "11:10:35 PST"]
[Termination "Natalya_Buksa won on time"]

1. d4 {[%clk 0:03:00.9]} 1... d5 {[%clk 0:02:59.4]} 2. Nc3 {[%clk 0:03:01.4]}
2... Bf5 {[%clk 0:02:58.5]} 3. Bf4 {[%clk 0:03:01.6]} 3... e6 {[%clk 0:02:58.4]}
4. e3 {[%clk 0:03:01.9]} 4... Nf6 {[%clk 0:02:57.8]} 5. Nf3 {[%clk 0:03:01.4]}
5... Bd6 {[%clk 0:02:57.6]} 6. Ne5 {[%clk 0:03:01.5]} 6... O-O {[%clk
0:02:56.6]} 7. g4 {[%clk 0:03:01]} 7... Be4 {[%clk 0:02:55.9]} 8. f3 {[%clk
0:03:00.9]} 8... Bg6 {[%clk 0:02:55.5]} 9. h4 {[%clk 0:03:00.9]} 9... h6 {[%clk
0:02:41.5]} 10. h5 {[%clk 0:02:53.5]} 10... Bh7 {[%clk 0:02:40.9]} 11. g5 {[%clk
0:02:53.7]} 11... hxg5 {[%clk 0:02:27.4]} 12. Bxg5 {[%clk 0:02:54.6]} 12... Nbd7
{[%clk 0:02:23.5]} 13. Bd3 {[%clk 0:02:54.3]} 13... Be7 {[%clk 0:02:20.5]} 14.
h6 {[%clk 0:02:46.1]} 14... g6 {[%clk 0:02:04.3]} 15. Qe2 {[%clk 0:02:45.2]}
15... Nxe5 {[%clk 0:01:59.5]} 16. dxe5 {[%clk 0:02:43.9]} 16... Nd7 {[%clk
0:01:56.9]} 17. Bxe7 {[%clk 0:02:40.1]} 17... Qxe7 {[%clk 0:01:57.8]} 18. f4
{[%clk 0:02:39.3]} 18... Kh8 {[%clk 0:01:50.6]} 19. O-O-O {[%clk 0:02:38.5]}
19... g5 {[%clk 0:01:49]} 20. Bxh7 {[%clk 0:02:37.3]} 20... Kxh7 {[%clk
0:01:48.8]} 21. e4 {[%clk 0:02:16.1]} 21... c6 {[%clk 0:01:41.6]} 22. exd5
{[%clk 0:02:10.5]} 22... cxd5 {[%clk 0:01:41.4]} 23. Rdg1 {[%clk 0:02:09.4]}
23... Rg8 {[%clk 0:01:38.7]} 24. Qd3+ {[%clk 0:01:52.2]} 24... Kh8 {[%clk
0:01:37.4]} 25. Qe3 {[%clk 0:01:41.8]} 25... Rg6 {[%clk 0:00:46.4]} 26. fxg5
{[%clk 0:01:35.5]} 26... Rag8 {[%clk 0:00:46]} 27. Rh5 {[%clk 0:01:35.9]} 27...
Qb4 {[%clk 0:00:43.9]} 28. Ne2 {[%clk 0:01:26.5]} 28... Qa5 {[%clk 0:00:32.8]}
29. Nf4 {[%clk 0:01:25]} 29... Qxa2 {[%clk 0:00:19.7]} 30. Nxg6+ {[%clk
0:01:25.1]} 30... Rxg6 {[%clk 0:00:20.6]} 31. Qa3 {[%clk 0:00:45.4]} 31... Qxa3
{[%clk 0:00:18.5]} 32. bxa3 {[%clk 0:00:46.3]} 32... Nxe5 {[%clk 0:00:18.7]} 33.
Rh3 {[%clk 0:00:47]} 33... Nc4 {[%clk 0:00:15.1]} 34. Rb3 {[%clk 0:00:44.8]}
34... b6 {[%clk 0:00:15]} 35. a4 {[%clk 0:00:40.8]} 35... Kh7 {[%clk 0:00:14.1]}
36. Rf1 {[%clk 0:00:41]} 36... Nd6 {[%clk 0:00:12.3]} 37. Rc3 {[%clk 0:00:38.7]}
37... Rxg5 {[%clk 0:00:09.6]} 38. Rc6 {[%clk 0:00:39.1]} 38... Nf5 {[%clk
0:00:08.8]} 39. Rc7 {[%clk 0:00:36.7]} 39... Nd6 {[%clk 0:00:08]} 40. Rd7 {[%clk
0:00:37]} 40... Nf5 {[%clk 0:00:07.4]} 41. Rxf7+ {[%clk 0:00:35.2]} 41... Kxh6
{[%clk 0:00:08.3]} 42. Rf6+ {[%clk 0:00:35.7]} 42... Kg7 {[%clk 0:00:08]} 43.
Rxe6 {[%clk 0:00:35.3]} 43... Nd4 {[%clk 0:00:07.7]} 44. Re7+ {[%clk 0:00:35.4]}
44... Kg6 {[%clk 0:00:08.2]} 45. Rxa7 {[%clk 0:00:35]} 45... Rg2 {[%clk
0:00:08.2]} 46. Rc7 {[%clk 0:00:35.2]} 46... Ne2+ {[%clk 0:00:06.1]} 47. Kb2
{[%clk 0:00:34.8]} 47... d4 {[%clk 0:00:07]} 48. Kb3 {[%clk 0:00:34.6]} 48...
Nc3 {[%clk 0:00:07]} 49. Rc6+ {[%clk 0:00:34.9]} 49... Kg5 {[%clk 0:00:06.5]}
50. Rxb6 {[%clk 0:00:34.9]} 50... Ne4 {[%clk 0:00:05.9]} 51. Rb5+ {[%clk
0:00:34.5]} 51... Kg4 {[%clk 0:00:06]} 52. Rd1 {[%clk 0:00:33.7]} 52... Nd2+
{[%clk 0:00:05.8]} 53. Kb4 {[%clk 0:00:27.5]} 53... Kf4 {[%clk 0:00:06.4]} 54.
a5 {[%clk 0:00:27.4]} 54... Ke4 {[%clk 0:00:06.5]} 55. a6 {[%clk 0:00:27.6]}
55... Nf3 {[%clk 0:00:06.6]} 56. a7 {[%clk 0:00:27.7]} 56... Rg8 {[%clk
0:00:06.3]} 57. Rb8 {[%clk 0:00:27.1]} 57... Rg6 {[%clk 0:00:05.2]} 58. a8=Q+
{[%clk 0:00:26.8]} 1-0

[Event "*** Titled Tuesday Blitz"]
[Site "Chess.com"]
[Date "2020.11.10"]
[Round "6"]
[White "VerdeNotte"]
[Black "joppie2"]
[Result "1/2-1/2"]
[WhiteElo "2889"]
[BlackElo "2969"]
[TimeControl "180+1"]
[EndTime "11:10:39 PST"]
[Termination "Game drawn by agreement"]

1. e4 {[%clk 0:02:59.1]} 1... e5 {[%clk 0:03:00.2]} 2. Nf3 {[%clk 0:02:58.9]}
2... Nc6 {[%clk 0:03:00.8]} 3. Bc4 {[%clk 0:02:58.3]} 3... Bc5 {[%clk
0:02:59.4]} 4. c3 {[%clk 0:02:58]} 4... Nf6 {[%clk 0:02:59.6]} 5. d4 {[%clk
0:02:58.3]} 5... exd4 {[%clk 0:02:59.2]} 6. e5 {[%clk 0:02:58.7]} 6... d5 {[%clk
0:02:57.2]} 7. Bb5 {[%clk 0:02:58.9]} 7... Ne4 {[%clk 0:02:57.8]} 8. cxd4 {[%clk
0:02:59.4]} 8... Bb6 {[%clk 0:02:58.3]} 9. Nc3 {[%clk 0:02:58.6]} 9... Bg4
{[%clk 0:02:57.7]} 10. Be3 {[%clk 0:02:58.8]} 10... O-O {[%clk 0:02:50.3]} 11.
h3 {[%clk 0:02:58.8]} 11... Bh5 {[%clk 0:02:48.9]} 12. Qc2 {[%clk 0:02:58.7]}
12... Ba5 {[%clk 0:02:36.4]} 13. O-O {[%clk 0:02:54.8]} 13... Bxf3 {[%clk
0:02:31.2]} 14. gxf3 {[%clk 0:02:54.2]} 14... Ng5 {[%clk 0:02:28.3]} 15. Qf5
{[%clk 0:02:46.7]} 15... Ne6 {[%clk 0:02:25.6]} 16. Bxc6 {[%clk 0:02:41.7]}
16... bxc6 {[%clk 0:02:25.3]} 17. Ne2 {[%clk 0:02:39.1]} 17... Bb6 {[%clk
0:02:18.4]} 18. Rac1 {[%clk 0:02:37]} 18... g6 {[%clk 0:02:18.7]} 19. Qg4 {[%clk
0:02:31.8]} 19... Qd7 {[%clk 0:02:09]} 20. f4 {[%clk 0:01:56.3]} 20... f5 {[%clk
0:01:47.9]} 21. Qg3 {[%clk 0:01:55.3]} 21... Kh8 {[%clk 0:01:46.7]} 22. Rc2
{[%clk 0:01:52.3]} 22... g5 {[%clk 0:01:31.6]} 23. fxg5 {[%clk 0:01:47.4]} 23...
f4 {[%clk 0:01:31.6]} 24. Nxf4 {[%clk 0:01:47.3]} 24... Nxf4 {[%clk 0:01:31.1]}
25. Bxf4 {[%clk 0:01:47.5]} 25... Qf5 {[%clk 0:01:31.7]} 26. g6 {[%clk
0:00:51.4]} 26... Rg8 {[%clk 0:01:23.9]} 27. Rxc6 {[%clk 0:00:50.6]} 27... Bxd4
{[%clk 0:00:53.4]} 28. Rf6 {[%clk 0:00:41.4]} 28... Qh5 {[%clk 0:00:49.8]} 29.
Rc1 {[%clk 0:00:32.6]} 29... c5 {[%clk 0:00:48.7]} 30. b4 {[%clk 0:00:23.8]}
30... c4 {[%clk 0:00:46.7]} 31. Kh2 {[%clk 0:00:19.1]} 31... Rae8 {[%clk
0:00:29.5]} 32. Qg4 {[%clk 0:00:08.8]} 32... Qxg4 {[%clk 0:00:27.7]} 33. hxg4
{[%clk 0:00:09.7]} 33... Rxg6 {[%clk 0:00:27.1]} 34. Rxg6 {[%clk 0:00:06.6]}
34... hxg6 {[%clk 0:00:28]} 35. Rd1 {[%clk 0:00:07.3]} 35... Bxe5 {[%clk
0:00:28.3]} 36. Bxe5+ {[%clk 0:00:07.8]} 36... Rxe5 {[%clk 0:00:28.7]} 37. Kg3
{[%clk 0:00:08.1]} 37... g5 {[%clk 0:00:24.6]} 38. f4 {[%clk 0:00:07.1]} 38...
Re3+ {[%clk 0:00:15.4]} 39. Kf2 {[%clk 0:00:07.5]} 39... gxf4 {[%clk 0:00:15.7]}
40. Rxd5 {[%clk 0:00:07.8]} 40... c3 {[%clk 0:00:16.6]} 41. Rd4 {[%clk
0:00:04.7]} 41... c2 {[%clk 0:00:15.9]} 42. Rc4 {[%clk 0:00:05.1]} 42... Rh3
{[%clk 0:00:16.2]} 43. Kg2 {[%clk 0:00:02.6]} 43... Rg3+ {[%clk 0:00:16.4]} 44.
Kf2 {[%clk 0:00:02.9]} 44... Rxg4 {[%clk 0:00:16.4]} 45. Rxc2 {[%clk 0:00:02.9]}
45... Rh4 {[%clk 0:00:16.3]} 46. Kf3 {[%clk 0:00:03]} 46... Kg7 {[%clk
0:00:15.8]} 47. Rc7+ {[%clk 0:00:02.7]} 47... Kf6 {[%clk 0:00:16.2]} 48. Rxa7
{[%clk 0:00:03.6]} 48... Ke5 {[%clk 0:00:16.6]} 49. Ra5+ {[%clk 0:00:03.6]}
49... Kd4 {[%clk 0:00:17.1]} 50. Rf5 {[%clk 0:00:04.3]} 50... Rh3+ {[%clk
0:00:14.5]} 51. Kxf4 {[%clk 0:00:04.5]} 51... Ra3 {[%clk 0:00:15.4]} 52. Ra5
{[%clk 0:00:04.6]} 52... Rxa5 {[%clk 0:00:15]} 53. bxa5 {[%clk 0:00:05.2]} 53...
Kc5 {[%clk 0:00:15.9]} 54. Ke3 {[%clk 0:00:05.8]} 54... Kb5 {[%clk 0:00:16.2]}
55. Kd2 {[%clk 0:00:06.7]} 55... Kxa5 {[%clk 0:00:16.5]} 56. Kc2 {[%clk
0:00:07.6]} 56... Kb5 {[%clk 0:00:16.8]} 57. Kb2 {[%clk 0:00:08.5]} 57... Ka5
{[%clk 0:00:17.6]} 58. a3 {[%clk 0:00:09.4]} 58... Kb5 {[%clk 0:00:18.5]} 59.
Kb3 {[%clk 0:00:10.3]} 59... Ka5 {[%clk 0:00:19]} 60. a4 {[%clk 0:00:10.4]}
1/2-1/2

[Event "*** Titled Tuesday Blitz"]
[Site "Chess.com"]
[Date "2020.11.10"]
[Round "6"]
[White "NikolaGry"]
[Black "chito89"]
[Result "1-0"]
[WhiteElo "2639"]
[BlackElo "2830"]
[TimeControl "180+1"]
[EndTime "11:10:39 PST"]
[Termination "NikolaGry won by resignation"]

1. e4 {[%clk 0:03:00.9]} 1... c5 {[%clk 0:02:09.8]} 2. Be2 {[%clk 0:03:00.2]}
2... e6 {[%clk 0:02:08.8]} 3. f4 {[%clk 0:02:59.6]} 3... d5 {[%clk 0:02:08.9]}
4. d3 {[%clk 0:03:00]} 4... Nc6 {[%clk 0:02:08.7]} 5. Nf3 {[%clk 0:02:59.4]}
5... g6 {[%clk 0:02:09.2]} 6. O-O {[%clk 0:02:57.2]} 6... Bg7 {[%clk 0:02:09.6]}
7. c3 {[%clk 0:02:57.5]} 7... Nge7 {[%clk 0:02:09.8]} 8. Nbd2 {[%clk 0:02:48.3]}
8... b6 {[%clk 0:02:04.5]} 9. e5 {[%clk 0:02:36.6]} 9... Nf5 {[%clk 0:02:01.9]}
10. Nb3 {[%clk 0:02:30.9]} 10... d4 {[%clk 0:01:56.3]} 11. Qe1 {[%clk
0:02:28.2]} 11... h5 {[%clk 0:01:52]} 12. Ng5 {[%clk 0:02:11.3]} 12... Bb7
{[%clk 0:01:45.4]} 13. Bd2 {[%clk 0:01:57.4]} 13... a5 {[%clk 0:01:21.4]} 14. a4
{[%clk 0:01:44.4]} 14... Qd5 {[%clk 0:01:19.2]} 15. c4 {[%clk 0:01:39.2]} 15...
Qd7 {[%clk 0:01:16.1]} 16. Bf3 {[%clk 0:01:32]} 16... Nb4 {[%clk 0:01:06.6]} 17.
Bxb4 {[%clk 0:01:13]} 17... axb4 {[%clk 0:01:05.1]} 18. a5 {[%clk 0:01:08.4]}
18... Ne3 {[%clk 0:01:00.3]} 19. axb6 {[%clk 0:01:03.8]} 19... Rxa1 {[%clk
0:00:46]} 20. Qxa1 {[%clk 0:01:02.3]} 20... Bxf3 {[%clk 0:00:23.6]} 21. Nxc5
{[%clk 0:00:59]} 21... Qc6 {[%clk 0:00:19.9]} 22. Rxf3 {[%clk 0:00:56.1]} 22...
O-O {[%clk 0:00:12.4]} 23. Qa5 {[%clk 0:00:34.9]} 23... Ra8 {[%clk 0:00:12.2]}
24. Qb5 {[%clk 0:00:25.8]} 24... Qxb5 {[%clk 0:00:07.1]} 25. cxb5 {[%clk
0:00:25.4]} 25... Ra5 {[%clk 0:00:08]} 26. b7 {[%clk 0:00:21.8]} 26... Rxb5
{[%clk 0:00:08.4]} 27. Nge4 {[%clk 0:00:21.8]} 27... Bf8 {[%clk 0:00:05.8]} 28.
Rxe3 {[%clk 0:00:19.5]} 28... dxe3 {[%clk 0:00:05.7]} 29. d4 {[%clk 0:00:19.7]}
29... b3 {[%clk 0:00:03.2]} 30. Kf1 {[%clk 0:00:18.8]} 30... Be7 {[%clk
0:00:03.7]} 31. Ke2 {[%clk 0:00:18.6]} 31... Kf8 {[%clk 0:00:04.3]} 32. Nd6
{[%clk 0:00:14.2]} 32... Bxd6 {[%clk 0:00:03.6]} 33. exd6 {[%clk 0:00:14]} 33...
Ke8 {[%clk 0:00:04.4]} 34. Kxe3 {[%clk 0:00:13.9]} 34... Kd8 {[%clk 0:00:04.7]}
35. h4 {[%clk 0:00:12.8]} 35... Rb6 {[%clk 0:00:04.1]} 36. d7 {[%clk 0:00:11.3]}
36... Kc7 {[%clk 0:00:03.6]} 37. Ke4 {[%clk 0:00:10.8]} 37... f6 {[%clk
0:00:03.4]} 38. Kd3 {[%clk 0:00:10.3]} 38... Rb4 {[%clk 0:00:04]} 39. Kc3 {[%clk
0:00:10.1]} 39... Rb6 {[%clk 0:00:04.5]} 40. Kc4 {[%clk 0:00:08.5]} 40... Kd8
{[%clk 0:00:04.1]} 41. Kc3 {[%clk 0:00:06.6]} 41... Kc7 {[%clk 0:00:04]} 42. Kd3
{[%clk 0:00:07]} 42... Kd8 {[%clk 0:00:04.5]} 43. Kc4 {[%clk 0:00:05.8]} 43...
Kc7 {[%clk 0:00:05]} 44. d5 {[%clk 0:00:06.1]} 44... e5 {[%clk 0:00:05.6]} 45.
d6+ {[%clk 0:00:04.1]} 45... Rxd6 {[%clk 0:00:05.4]} 46. fxe5 {[%clk 0:00:02]}
46... fxe5 {[%clk 0:00:06.3]} 47. Kb5 {[%clk 0:00:01.8]} 47... Rd5 {[%clk
0:00:05.5]} 48. Kc4 {[%clk 0:00:02.1]} 48... Rd4+ {[%clk 0:00:05.8]} 49. Kc3
{[%clk 0:00:02]} 49... e4 {[%clk 0:00:06.7]} 50. Kxd4 {[%clk 0:00:01.5]} 50...
e3 {[%clk 0:00:07.3]} 51. Kxe3 {[%clk 0:00:02.3]} 1-0